bitfinex/quotes_ETHUSD_20251012
["timestamp","ask_amount","ask_price","bid_price","bid_amount"]
[1760231055125,5.16319,3717.4,3716.7,2.46]
[1760231055440,1.92,3717.5,3716.7,2.46]
[1760231055641,1.92,3717.3,3716.7,3.69]
[1760231055940,1.92,3717.2,3716.7,3.69]
[1760231056104,1.92,3717.0,3716.7,3.69]
[1760231056684,2.113466,3717.2,3716.7,3.69]
[1760231056833,0.52440211,3717.7,3716.7,3.69]
[1760231057166,0.42200211,3717.7,3716.7,4.92]
[1760231057364,0.001,3717.9,3716.8,0.4346]
[1760231057665,0.001,3717.9,3717.0,2.69034109]
[1760231057862,0.001,3717.9,3716.8,0.4346]
[1760231058169,0.001,3717.9,3716.7,5.84752854]
[1760231058170,0.001,3717.9,3716.9,0.4346]
[1760231058527,0.001,3717.9,3717.7,2.68977356]
[1760231058729,0.001,3717.9,3717.2,2.69012844]
[1760231058953,0.1344,3717.5,3717.3,0.53804701]
[1760231059154,0.1344,3717.5,3716.7,6.15]
[1760231059360,1.92,3717.7,3716.7,6.15]
[1760231059559,0.001,3717.9,3716.7,6.15]
[1760231059765,1.92,3717.7,3716.7,6.15]
[1760231059962,1.92,3717.3,3716.7,6.15]
[1760231060171,2.328634,3717.2,3716.7,7.38]
[1760231060467,1.92,3717.4,3716.7,7.38]
[1760231060971,0.001,3717.9,3717.1,2.690267]
[1760231061176,0.001,3717.9,3716.8,0.4346]
[1760231061357,0.001,3717.9,3717.6,2.68985824]
[1760231061536,0.001,3717.9,3717.7,2.68982192]
[1760231061738,0.001,3717.9,3717.1,2.69026929]
[1760231062036,0.001,3717.9,3717.6,2.68990526]
[1760231062281,0.001,3717.9,3717.5,2.68997179]
[1760231062780,0.001,3717.9,3717.6,3.15679769]
[1760231062935,0.001,3717.9,3717.2,0.31248693]
[1760231063134,0.001,3717.9,3717.0,0.4669]
[1760231063135,0.38275804,3717.8,3717.0,0.4669]
[1760231063334,0.38275804,3717.8,3717.0,1.6969]
[1760231064567,0.38275804,3717.8,3717.0,1.23]
[1760231064770,0.001,3717.9,3717.1,0.4669]
[1760231064970,0.001,3717.9,3717.2,0.29269]
[1760231065669,0.001,3717.9,3717.3,0.4669]
[1760231065882,0.001,3717.9,3717.3,3.1569806]
[1760231066040,0.001,3717.9,3717.5,2.68995531]
[1760231066243,0.001,3717.9,3717.3,4.38702431]
[1760231066590,0.001,3717.9,3717.4,3.15800931]
[1760231066736,0.001,3717.9,3717.8,2.68976276]
[1760231067371,0.001,3717.9,3717.8,3.79026276]
[1760231067540,0.001,3718.3,3718.0,2.68956857]
[1760231067741,0.001,3718.3,3718.2,0.2164]
[1760231067979,0.001,3718.3,3717.8,1.23]
[1760231068183,0.001,3718.3,3718.0,0.4669]
[1760231068674,0.001,3718.3,3717.8,1.23]
[1760231068876,0.001,3718.3,3718.0,1.23]
[1760231069173,0.38375804,3718.3,3718.0,1.23]
[1760231069373,14.884711,3718.1,3718.0,1.23]
[1760231069570,13.654238,3718.1,3718.0,1.23]
[1760231069871,13.40899604,3718.1,3718.0,1.23]
[1760231070073,12.76943004,3718.1,3718.0,1.23]
[1760231070288,12.76943004,3718.1,3718.0,2.46]
[1760231070578,13.53354704,3718.1,3718.0,2.46]
[1760231070783,16.22309277,3718.1,3718.0,2.46]
[1760231070953,10.85664204,3718.1,3718.0,2.46]
[1760231071272,12.66772877,3718.1,3718.0,2.46]
[1760231071572,16.82044477,3718.1,3718.0,3.69]
[1760231072484,19.08206018,3718.1,3718.0,0.99524613]
[1760231072798,19.08206018,3718.1,3717.8,2.8e-07]
[1760231072799,32.98393649,3717.9,3717.8,2.8e-07]
[1760231073078,19.12577094,3717.9,3717.8,2.8e-07]
[1760231073279,19.22597094,3717.9,3717.8,2.8e-07]
[1760231073585,34.03928794,3717.9,3717.8,2.8e-07]
[1760231073793,3.25565804,3717.9,3717.8,2.8e-07]
[1760231073957,6.997581,3717.9,3717.8,2.8e-07]
[1760231074355,7.48173904,3717.9,3717.8,1.23000028]
[1760231074550,18.94954304,3717.9,3717.8,1.23000028]
[1760231074746,17.58348804,3717.9,3717.8,1.23000028]
[1760231074952,21.12357845,3717.9,3717.8,1.23000028]
[1760231075273,22.79265094,3717.9,3717.8,1.23000028]
[1760231075479,14.32515445,3717.9,3717.8,1.23000028]
[1760231075778,10.85968804,3717.9,3717.8,2.46000028]
[1760231075980,5.093185,3717.9,3717.8,2.46000028]
[1760231076157,0.42193654,3718.2,3717.8,2.46000028]
[1760231076357,4.195797,3718.1,3717.8,2.46000028]
[1760231076580,1.92,3717.9,3717.8,2.46000028]
[1760231076773,5.142003,3717.9,3717.8,2.46000028]
[1760231077170,1.92,3717.9,3717.8,2.46000028]
[1760231077372,18.21627204,3717.9,3717.8,3.69000028]
[1760231077683,20.85268945,3717.9,3717.8,3.69000028]
[1760231077890,18.80730545,3717.9,3717.8,3.69000028]
[1760231078085,18.80730545,3717.9,3717.8,0.99517885]
[1760231078294,34.03808794,3717.9,3717.8,0.99517885]
[1760231078500,23.99633729,3717.1,3717.0,2.45994024]
[1760231078679,24.10003729,3717.1,3717.0,2.45994024]
[1760231078996,24.48279533,3717.1,3717.0,2.45994024]
[1760231079206,24.90481323,3717.1,3717.0,2.45994024]
[1760231079362,26.58575333,3717.1,3717.0,2.45994024]
[1760231079563,25.00283933,3717.1,3717.0,2.45994024]
[1760231079971,25.00283933,3717.1,3717.0,3.68994024]
[1760231080173,4.676168,3717.1,3717.0,3.68994024]
[1760231080401,4.566555,3717.1,3717.0,3.68994024]
[1760231080609,1.92,3717.1,3717.0,3.68994024]
[1760231080774,0.001,3717.6,3717.0,3.68994024]
[1760231080974,0.001,3717.6,3717.1,0.4669]
[1760231081192,0.001,3717.6,3717.0,4.91993426]
[1760231081392,0.001,3717.6,3717.0,3.68994024]
[1760231081700,0.001,3717.6,3717.1,1.23]
[1760231082288,0.001,3717.6,3717.1,1.6589]
[1760231082936,0.001,3717.6,3717.1,2.8889]
[1760231083221,0.001,3717.6,3717.1,2.46]
[1760231083420,0.001,3717.6,3717.2,1.04389402]
[1760231083882,0.001,3717.6,3717.3,0.4289]
[1760231084282,0.001,3717.6,3717.4,0.4289]
[1760231084715,0.001,3717.6,3717.5,0.4289]
[1760231084883,0.001,3717.6,3717.5,3.11887982]
[1760231085078,0.001,3717.6,3717.5,3.88427475]
[1760231085306,0.001,3717.6,3717.5,1.19429493]
[1760231085508,0.001,3717.6,3717.3,1.23]
[1760231085708,0.001,3717.6,3717.3,2.46]
[1760231086226,0.001,3717.6,3717.4,0.4289]
[1760231086582,0.001,3717.6,3717.5,3.11887982]
[1760231086794,0.001,3717.6,3717.5,3.9457788]
[1760231086993,0.001,3717.6,3717.5,1.23]
[1760231087616,0.001,3717.6,3717.5,1.6589]
[1760231087806,0.001,3717.6,3717.5,4.34887982]
[1760231087988,0.001,3717.6,3717.5,1.6589]
[1760231088189,0.001,3717.6,3717.5,4.34887982]
[1760231088403,0.001,3717.6,3717.5,6.2597678]
[1760231089191,0.001,3717.6,3717.5,2.8889]
[1760231089732,0.001,3717.6,3717.5,6.80887982]
[1760231091095,0.001,3717.6,3717.5,8.03887982]
[1760231092092,0.001,3717.6,3717.5,4.92]
[1760231092295,0.001,3717.6,3717.5,5.3489]
[1760231092594,0.001,3717.6,3717.5,10.04976982]
[1760231093717,0.001,3717.6,3717.5,11.27976982]
[1760231094101,0.001,3717.6,3717.5,11.91336982]
[1760231094312,0.001,3717.6,3717.5,12.04776982]
[1760231094535,0.001,3718.0,3717.9,3.32329041]
[1760231094701,0.001,3718.3,3718.0,0.6336]
[1760231095032,1e-08,3718.5,3718.4,3.32292874]
[1760231095408,1e-08,3718.5,3718.4,3.77292874]
[1760231095720,1e-08,3718.5,3718.4,0.45]
[1760231095925,1e-08,3718.5,3718.4,3.13932874]
[1760231096633,1e-08,3718.5,3718.4,1.23]
[1760231097949,1e-08,3718.5,3718.4,2.46]
[1760231098133,1.92000001,3718.5,3718.4,2.46]
[1760231098429,19.29418801,3718.5,3718.4,2.46]
[1760231098608,17.23084905,3718.5,3718.4,2.46]
[1760231098803,2.30275805,3718.5,3718.4,2.46]
[1760231099004,1.92000001,3718.5,3718.4,2.46]
[1760231099515,1.92000001,3718.5,3718.4,3.69]
[1760231100312,1.92000001,3718.5,3718.4,4.554]
[1760231100538,1.92000001,3718.5,3718.4,3.69]
[1760231100742,1.92000001,3718.5,3718.4,4.92]
[1760231100931,1.92000001,3718.5,3718.4,5.37]
[1760231101245,0.001,3719.3,3718.5,0.6336]
[1760231101442,0.001,3719.3,3719.2,2.68875026]
[1760231101811,0.001,3719.3,3719.2,3.13875026]
[1760231102308,0.001,3719.3,3719.2,4.36875026]
[1760231102918,0.001,3719.3,3719.2,5.00235026]
[1760231103122,0.001,3719.3,3719.2,4.36875026]
[1760231103408,0.001,3719.3,3719.2,5.07451382]
[1760231103721,0.001,3719.3,3719.2,6.30451382]
[1760231104132,0.001,3719.3,3719.2,6.93811382]
[1760231104865,0.001,3719.9,3719.8,3.32191657]
[1760231104866,1e-08,3719.9,3719.8,3.32191657]
[1760231105316,1e-08,3719.9,3719.8,3.77191657]
[1760231105634,1e-08,3719.9,3719.8,4.41794964]
[1760231106326,1e-08,3719.9,3719.8,5.64794964]
[1760231107630,1e-08,3719.9,3719.8,6.87794964]
[1760231108270,2.421855,3724.0,3722.7,2.68618274]
[1760231108580,0.38275804,3723.7,3722.8,0.45]
[1760231108778,6.367638,3724.0,3723.0,2.68600436]
[1760231108938,0.001,3724.1,3723.1,0.45]
[1760231109143,1.92,3724.0,3723.2,2.68582892]
[1760231109363,14.155018,3724.3,3723.3,2.68578005]
[1760231109549,17.913616,3724.7,3723.1,0.45]
[1760231109750,13.964469,3724.7,3723.2,2.68586162]
[1760231110057,1.92,3724.3,3723.3,3.13572848]
[1760231110235,0.3786747,3724.7,3723.4,3.13565351]
[1760231110439,1.92,3724.5,3723.4,3.13565351]
[1760231110639,8.652946,3725.0,3723.6,2.68550559]
[1760231110841,2.68412775,3725.7,3723.5,0.45]
[1760231110842,4.755847,3724.6,3723.5,0.45]
[1760231111071,4.755847,3724.6,3723.3,0.45]
[1760231111289,1.92,3724.3,3723.1,1.23]
[1760231111445,1.92,3724.1,3723.1,1.23]
[1760231111773,0.35329341,3724.0,3723.2,0.45]
[1760231111981,0.3786747,3724.1,3723.2,0.45]
[1760231112150,0.35329341,3724.5,3723.2,0.45]
[1760231112476,0.3786747,3725.0,3724.8,2.6847079]
[1760231112777,0.42128604,3725.1,3724.9,0.45]
[1760231113031,1.92,3726.5,3725.0,0.45]
[1760231113142,2.630156,3726.6,3725.3,2.68433254]
[1760231113475,7.833212,3727.0,3725.4,0.45]
[1760231113850,7.833212,3727.0,3725.4,3.13425752]
[1760231114056,1.92,3726.7,3725.4,3.13425752]
[1760231114363,0.43400079,3727.2,3725.4,0.45]
[1760231114570,12.540355,3727.1,3725.4,3.13423253]
[1760231114765,0.1336,3725.5,3725.4,3.13423253]
[1760231115275,0.1336,3725.5,3725.4,4.36423253]
[1760231115785,0.42093792,3727.3,3725.4,5.06909674]
[1760231115953,1.92,3727.1,3726.0,2.68383451]
[1760231116158,0.42093792,3727.3,3726.1,0.6855]
[1760231116342,0.1336,3726.6,3726.4,2.68353291]
[1760231116545,0.1406038,3727.9,3726.4,2.68353291]
[1760231116546,0.56142126,3727.9,3726.6,0.6336]
[1760231116742,1.92,3727.7,3726.7,0.45]
[1760231116968,2.1998,3727.6,3726.7,0.45]
[1760231117184,0.56142126,3727.9,3726.7,0.45]
[1760231117379,0.001,3727.0,3726.7,3.13332138]
[1760231117583,0.001,3727.0,3726.8,0.45]
[1760231117949,0.001,3727.0,3726.2,0.45]
[1760231118489,0.001,3727.0,3726.5,1.23]
[1760231118846,0.001,3727.0,3726.5,1.68]
[1760231119092,0.001,3727.0,3726.6,0.45]
[1760231119291,0.001,3727.4,3726.7,1.44]
[1760231119587,0.001,3727.4,3726.8,0.45]
[1760231120369,0.001,3727.4,3727.3,2.68290719]
[1760231120791,0.33260079,3729.9,3728.5,2.68203097]
[1760231121001,0.42074903,3730.1,3728.5,0.45]
[1760231121202,0.2115,3730.2,3728.5,0.45]
[1760231121399,0.42060207,3729.8,3728.7,2.6818453]
[1760231121572,0.42060207,3729.8,3729.1,2.68156913]
[1760231121773,4.462811,3730.1,3728.4,2.68209843]
[1760231121988,2.151901,3730.1,3728.5,0.45]
[1760231122386,2.151901,3730.1,3728.5,3.13203339]
[1760231122587,2.151901,3730.1,3728.6,0.45]
[1760231122904,2.866207,3730.6,3728.9,2.68169229]
[1760231123093,1.92,3730.3,3728.9,2.68169229]
[1760231123404,5.200037,3730.6,3728.6,3.14230525]
[1760231123563,0.6336,3730.3,3728.6,0.4604]
[1760231123878,1.92,3729.7,3728.3,0.1612]
[1760231124073,1.92,3729.3,3728.1,0.4604]
[1760231124331,3.634156,3729.0,3728.5,1.23]
[1760231124598,1.92,3729.7,3728.6,0.4604]
[1760231124797,2.028141,3729.8,3728.6,0.4604]
[1760231124986,0.42061304,3729.9,3728.6,0.4604]
[1760231125299,1.92,3729.8,3728.6,0.4604]
[1760231125518,4.1441,3729.7,3728.6,3.14235505]
[1760231125802,1.92,3729.4,3728.5,2.46]
[1760231125967,0.6336,3729.8,3728.5,2.46]
[1760231126170,1.92,3729.7,3728.5,2.46]
[1760231126364,0.42064897,3729.9,3728.6,0.4604]
[1760231126672,0.439,3730.4,3728.8,2.68179447]
[1760231126673,0.1336,3728.9,3728.8,2.68179447]
[1760231126869,0.42062076,3730.3,3728.9,0.6336]
[1760231127204,8.549257,3731.9,3730.2,0.1019]
[1760231127400,4.134169,3732.0,3730.3,0.4604]
[1760231127577,0.1591,3731.9,3730.3,0.4604]
[1760231127778,1.92,3731.7,3730.3,0.4604]
[1760231127978,16.567491,3731.4,3729.6,3.14161462]
[1760231128300,0.6336,3731.4,3729.6,0.4604]
[1760231128464,2.5536,3731.0,3729.0,0.4604]
[1760231128665,2.771979,3730.8,3729.3,2.68145916]
[1760231128898,1.92,3730.6,3729.4,0.4604]
[1760231129203,0.4333,3731.1,3729.4,0.4604]
[1760231129204,0.33260079,3731.5,3729.4,0.4604]
[1760231129377,0.42047399,3731.7,3729.5,0.6336]
[1760231129578,7.624673,3731.4,3730.3,2.68073498]
[1760231129781,0.33260079,3731.8,3730.3,3.14113498]
[1760231130103,4.500894,3731.5,3730.3,3.14114009]
[1760231130278,1.92,3731.4,3730.4,2.68065741]
[1760231130599,0.4333,3732.0,3730.3,3.1411415]
[1760231130775,0.2242,3732.4,3730.4,1.094]
[1760231130979,2.558278,3732.6,3730.5,0.4604]
[1760231131197,2.558278,3732.6,3731.2,2.68003536]
[1760231131372,0.4306,3732.7,3731.2,0.4604]
[1760231131578,9.7751,3733.0,3731.2,0.4604]
[1760231131768,1.92,3732.2,3731.2,0.4604]
[1760231131992,19.45002,3731.9,3730.5,0.4604]
[1760231132191,1.92,3731.8,3730.5,0.4604]
[1760231132435,0.218,3733.1,3730.5,0.77451939]
[1760231132742,0.33260079,3733.1,3730.6,1.094]
[1760231132941,0.42034362,3733.5,3731.4,0.6336]
[1760231133238,0.42034362,3733.5,3729.9,2.68101641]
[1760231133239,0.42034362,3733.5,3731.9,0.6336]
[1760231133393,4.711248,3734.1,3732.4,2.67924054]
[1760231133601,0.4201793,3733.2,3732.5,0.6877]
[1760231133816,0.4306,3734.2,3732.5,0.6877]
[1760231134027,0.4306,3734.2,3732.0,0.6877]
[1760231134028,1.92,3733.8,3732.0,0.6877]
[1760231134236,1.92,3733.3,3732.0,0.6877]
[1760231134393,0.42017482,3733.7,3732.0,0.6877]
[1760231134394,1.92,3733.6,3732.2,2.67938481]
[1760231134603,0.42017482,3733.7,3732.5,2.67915648]
[1760231134818,10.940467,3734.3,3732.6,0.4604]
[1760231135130,1.92,3734.2,3732.6,0.4604]
[1760231135292,5.649693,3734.3,3732.4,0.4604]
[1760231135662,0.4273,3734.2,3732.4,0.4604]
[1760231135835,26.424867,3734.1,3732.5,0.6336]
[1760231135998,4.175108,3735.9,3734.1,0.6336]
[1760231136199,0.42005736,3736.6,3734.3,0.6336]
[1760231136395,0.42005736,3736.6,3734.9,0.6336]
[1760231136630,0.42005736,3736.6,3735.0,0.4604]
[1760231136839,0.4273,3737.6,3736.0,2.67665513]
[1760231137043,0.1336,3736.3,3736.0,0.4604]
[1760231137249,0.1336,3736.3,3736.1,0.4604]
[1760231137405,0.1336,3736.3,3735.7,0.1336]
[1760231137602,0.41975098,3737.4,3735.0,0.4604]
[1760231137603,0.1336,3735.7,3735.0,0.4604]
[1760231137802,0.1336,3735.3,3735.0,0.4604]
[1760231138044,0.1336,3735.3,3735.1,0.4604]
[1760231138246,0.4273,3737.4,3735.3,0.6336]
[1760231138536,0.84714782,3737.4,3736.2,2.67649433]
[1760231138746,0.84714782,3737.4,3735.3,2.67711509]
[1760231138747,2.31727,3737.3,3735.3,0.6336]
[1760231139103,3.662561,3737.9,3735.4,0.4604]
[1760231139304,3.99516179,3737.9,3735.5,0.6336]
[1760231139515,2.67592026,3737.1,3735.4,0.4604]
[1760231139734,9.020488,3737.0,3735.4,0.4604]
[1760231139938,8.238321,3736.8,3734.8,0.4604]
[1760231140118,1.92,3736.4,3734.8,0.4604]
[1760231140337,1.92,3737.0,3734.9,0.6336]
[1760231140630,1.92,3736.4,3734.8,0.4604]
[1760231140831,1.92,3736.2,3734.8,0.4604]
[1760231141032,1.92,3735.8,3734.8,0.4604]
[1760231141248,1.92,3735.8,3734.4,0.1687]
[1760231141249,1.92,3735.6,3734.4,0.1687]
[1760231141426,1.92,3735.2,3734.9,1.23]
[1760231141622,6.421787,3735.6,3734.9,1.23]
[1760231141837,2.67724669,3735.2,3734.9,1.23]
[1760231142046,1.92,3735.0,3734.9,1.23]
[1760231142248,5.212524,3735.0,3734.9,1.23]
[1760231142563,9.72332384,3735.0,3734.9,1.23]
[1760231142843,9.72332384,3735.0,3734.9,1.6e-07]
[1760231143045,8.32440017,3735.0,3734.9,1.6e-07]
[1760231143243,9.72332384,3735.0,3734.9,1.6e-07]
[1760231143412,10.05592463,3735.0,3734.9,1.6e-07]
[1760231143614,1.92,3735.0,3734.9,1.6e-07]
[1760231143946,2.3545,3735.0,3734.9,1.6e-07]
[1760231144134,5.881736,3735.0,3734.9,1.6e-07]
[1760231144343,5.141167,3735.0,3734.9,1.6e-07]
[1760231144729,8.45214317,3735.0,3734.9,1.6e-07]
[1760231145138,8.87223399,3735.0,3734.9,1.6e-07]
[1760231145455,10.27115766,3735.0,3734.9,1.6e-07]
[1760231145661,10.60375845,3735.0,3734.9,1.6e-07]
[1760231145825,9.20483478,3735.0,3734.9,1.6e-07]
[1760231146014,9.49471236,3735.0,3734.9,1.6e-07]
[1760231146347,10.60375845,3735.0,3734.9,1.6e-07]
[1760231146717,9.20483478,3735.0,3734.9,1.6e-07]
[1760231146945,10.60375845,3735.0,3734.9,1.6e-07]
[1760231147113,11.396632,3733.5,3732.4,1.23]
[1760231147342,1.92,3733.4,3732.4,1.23]
[1760231147544,1.92,3733.0,3732.4,1.23]
[1760231147860,4.133981,3732.7,3732.4,1.23]
[1760231148169,3.27566,3733.2,3732.4,1.23]
[1760231148317,5.361739,3733.0,3732.4,1.23]
[1760231148663,1.92,3732.7,3732.4,1.23]
[1760231148843,1.92,3733.0,3732.4,1.23]
[1760231149048,25.921871,3732.7,3732.4,1.23]
[1760231149219,1.92,3732.5,3732.4,1.23]
[1760231149421,1.87,3732.5,3732.4,1.23]
[1760231150157,0.1336,3733.2,3732.4,1.8353]
[1760231150448,0.1336,3732.9,3732.5,0.18353]
[1760231150650,0.1336,3732.9,3732.6,0.4717]
[1760231150863,2.67741672,3735.0,3733.1,2.67867593]
[1760231151062,2.67723811,3735.2,3733.0,0.4717]
[1760231151264,3.801638,3734.8,3733.0,0.4717]
[1760231151427,1.6653,3734.9,3732.5,0.18353]
[1760231151428,0.6336,3734.3,3732.5,0.18353]
[1760231151633,1.56260079,3734.9,3732.4,1.23]
[1760231151634,13.815522,3733.4,3732.4,1.23]
[1760231151828,12.536814,3733.2,3732.4,1.23]
[1760231152036,8.65365011,3733.0,3732.4,1.23]
[1760231152237,1.92,3732.6,3732.4,1.23]
[1760231152434,9.19619845,3732.5,3732.4,1.23]
[1760231153271,2.3553,3732.5,3732.4,1.23]
[1760231153481,4.770825,3732.5,3732.4,1.23]
[1760231153679,1.92,3732.5,3732.4,1.23]
[1760231153981,4.695675,3732.5,3732.4,1.23]
[1760231154154,2.3553,3732.5,3732.4,2.46]
[1760231154565,4.993014,3732.5,3732.4,2.46]
[1760231154789,8.30578345,3732.5,3732.4,2.46]
[1760231155281,0.33260079,3733.4,3732.0,1.22980194]
[1760231155481,0.42028346,3733.4,3732.1,0.6534]
[1760231155684,7.646477,3734.4,3732.4,3.90918279]
[1760231155852,1.92,3734.3,3732.4,1.23]
[1760231156052,1.92,3733.7,3732.4,1.23]
[1760231156254,1.92,3733.5,3732.4,1.23]
[1760231156448,2.040384,3733.8,3732.5,2.67916945]
[1760231156755,4.117207,3733.8,3732.6,0.65884793]
[1760231156957,1.92,3733.5,3732.4,2.46]
[1760231157157,1.92,3733.3,3732.4,2.46]
[1760231157363,10.869169,3733.6,3732.4,2.46]
[1760231157570,9.687496,3733.6,3732.4,2.46]
[1760231157893,1.92,3732.9,3732.4,2.46]
[1760231158095,0.85741975,3733.4,3732.4,2.46]
[1760231158295,0.42021975,3733.4,3732.5,0.246]
[1760231158618,0.4372,3734.1,3732.5,1.476]
[1760231158619,1.92,3733.7,3732.5,1.476]
[1760231158781,0.4372,3734.1,3732.5,1.476]
[1760231158782,0.4372,3734.1,3732.5,4.15515651]
[1760231159101,25.28988,3733.8,3732.5,1.23]
[1760231159300,0.6336,3733.2,3732.5,1.23]
[1760231159473,0.6336,3733.6,3732.5,1.23]
[1760231159808,1.92,3733.3,3732.5,1.23]
[1760231160099,7.255443,3732.7,3732.5,1.23]
[1760231160308,1.92,3733.0,3732.5,1.23]
[1760231160492,0.6336,3733.4,3732.5,1.23]
[1760231160692,2.192447,3733.3,3732.5,1.23]
[1760231160874,1.92,3733.2,3732.5,1.23]
[1760231161063,1.92,3732.8,3732.5,1.23]
[1760231161270,3.616703,3732.6,3732.5,1.23]
[1760231161607,3.97634,3732.6,3732.5,1.23]
[1760231161774,4.524135,3732.6,3732.5,1.23]
[1760231161990,1.92,3732.6,3732.5,1.23]
[1760231162309,1.92,3732.6,3732.5,2.2735]
[1760231162815,1.92,3732.6,3732.5,1.845]
[1760231163118,1.92,3732.6,3732.5,1.23]
[1760231164614,0.4444,3734.4,3732.5,1.6585]
[1760231164780,2.607594,3734.3,3732.5,1.6585]
[1760231164979,12.777002,3734.0,3732.5,1.23]
[1760231165200,4.59836755,3733.7,3732.5,1.23]
[1760231165507,1.92,3733.0,3732.5,1.23]
[1760231165735,1.0757,3733.6,3732.5,1.23]
[1760231165911,4.262833,3733.3,3732.5,2.46]
[1760231166112,1.92,3732.9,3732.5,2.46]
[1760231166312,1.92,3733.3,3732.5,2.46]
[1760231166512,2.5536,3733.7,3732.5,2.8885]
[1760231166810,5.712366,3733.3,3732.5,2.46]
[1760231167114,0.4421,3733.6,3732.5,2.46]
[1760231167413,2.185182,3733.5,3732.5,4.674]
[1760231167589,8.028825,3733.3,3732.5,3.69]
[1760231167790,0.2165,3733.9,3732.5,3.69]
[1760231167791,1.92,3733.0,3732.5,3.69]
[1760231167991,1.92,3732.6,3732.5,3.69]
[1760231168205,2.3621,3733.0,3732.5,3.69]
[1760231168512,5.438625,3732.6,3732.5,3.69]
[1760231169014,0.42022074,3733.2,3732.5,4.92]
[1760231169213,1.92,3733.0,3732.5,4.92]
[1760231169413,8.152464,3732.7,3732.5,4.922]
[1760231169627,8.353976,3732.6,3732.5,4.922]
[1760231169806,8.276684,3732.6,3732.5,4.922]
[1760231169994,1.92,3732.6,3732.5,4.922]
[1760231170195,7.704919,3732.6,3732.5,4.922]
[1760231170395,1.92,3732.6,3732.5,6.152]
[1760231170615,6.855589,3732.6,3732.5,6.152]
[1760231170820,9.85183767,3732.6,3732.5,6.152]
[1760231171405,9.85183767,3732.6,3732.5,3.46774498]
[1760231171606,9.85183767,3732.6,3732.5,4.4e-07]
[1760231171925,9.85183767,3732.6,3732.1,0.002]
[1760231171926,5.23298481,3732.2,3732.1,0.00153191]
[1760231172127,23.89837181,3732.2,3732.1,0.00153191]
[1760231172329,5.2330566,3732.1,3732.0,1.22980194]
[1760231172529,32.0985236,3732.1,3732.0,1.22980194]
[1760231172705,5.233272,3731.8,3731.7,0.002]
[1760231172911,5.233272,3731.8,3729.4,1.23]
[1760231172912,31.65835444,3731.5,3731.4,1.0677]
[1760231173111,30.5493772,3730.6,3729.4,1.23]
[1760231173437,1.92,3730.6,3729.7,2.68114493]
[1760231173732,2.719254,3732.3,3730.6,2.68053396]
[1760231173918,0.1336,3730.6,3730.5,3.1345]
[1760231174422,0.1336,3730.6,3730.5,2.46]
[1760231174900,2.5536,3731.9,3730.5,2.8885]
[1760231175102,1.92,3731.7,3730.5,5.5691024]
[1760231175301,0.2189,3732.3,3730.5,5.5691024]
[1760231175302,1.92,3731.5,3730.8,2.68032059]
[1760231175509,1.92,3731.9,3730.8,0.4285]
[1760231175711,1.92,3731.7,3730.8,0.55689512]
[1760231176002,0.1336,3730.8,3730.6,2.68047783]
[1760231176199,0.1336,3730.6,3730.5,5.14060173]
[1760231176597,0.4203728,3732.3,3730.5,5.14060173]
[1760231176936,8.01246,3730.6,3730.5,2.46]
[1760231177111,10.19024496,3730.6,3730.5,2.46]
[1760231177314,8.07682996,3730.6,3730.5,2.46]
[1760231177503,5.67640889,3730.6,3730.5,2.46]
[1760231177707,8.14388785,3730.6,3730.5,2.46]
[1760231177906,9.73976385,3730.6,3730.5,2.46]
[1760231178316,2.34051189,3730.6,3730.5,2.46]
[1760231178518,0.2189,3732.7,3730.5,2.706]
[1760231178810,18.8155744,3732.5,3730.6,0.4285]
[1760231179005,0.2189,3732.6,3730.6,0.4285]
[1760231179006,3.847502,3732.2,3730.6,3.1090302]
[1760231179208,3.878014,3732.5,3732.0,1.23]
[1760231179403,2.67873905,3733.1,3732.0,1.23]
[1760231179840,3.319296,3732.9,3732.0,1.23]
[1760231180138,0.6336,3733.0,3732.0,1.23]
[1760231180433,1.92,3732.3,3732.0,1.23]
[1760231180632,3.82581,3732.4,3732.0,1.23]
[1760231180833,2.212429,3732.1,3732.0,1.23]
[1760231180999,6.61524323,3732.4,3732.0,1.23]
[1760231181199,1.31933472,3734.0,3732.0,1.23]
[1760231181200,3.121662,3732.1,3732.0,1.23]
[1760231181428,0.2189,3732.3,3732.0,1.23]
[1760231181429,0.6336,3732.3,3732.0,1.23]
[1760231181612,1.33883226,3733.0,3732.0,1.23]
[1760231181613,1.92,3732.1,3732.0,1.23]
[1760231181811,0.2189,3732.1,3732.0,1.23]
[1760231182127,1.92,3732.1,3732.0,1.23]
[1760231182435,5.027365,3732.1,3732.0,1.23]
[1760231182734,0.8525,3732.1,3732.0,1.23]
[1760231182926,9.31491648,3732.1,3732.0,1.23]
[1760231183123,7.9459576,3732.1,3732.0,1.23]
[1760231183440,9.31491648,3732.1,3732.0,1.6e-07]
[1760231183748,9.64751727,3732.1,3732.0,1.6e-07]
[1760231184043,10.06792627,3732.1,3732.0,1.6e-07]
[1760231184228,33.99879227,3732.1,3732.0,1.6e-07]
[1760231184431,3.31406211,3730.7,3730.6,1.23]
[1760231184630,2.5536,3730.7,3730.6,1.23]
[1760231184831,4.880903,3730.7,3730.6,1.23]
[1760231185341,2.5536,3730.7,3730.6,1.23]
[1760231185527,1.92,3730.7,3730.6,1.23]
[1760231188614,2.67981883,3731.6,3730.6,1.23]